[Event "VII Lorca Open 2018"]
[Site "Lorca"]
[Date "2018.12.27"]
[Round "3"]
[White "Domingo Nunez, Ruben"]
[Black "Korneev Leskova, Svyatoslav"]
[Result "0-1"]
[ECO "C18"]
[WhiteElo "2383"]
[BlackElo "2134"]
[Annotator "NA"]
[PlyCount "70"]
[EventDate "2018.12.26"]
[EventType "swiss"]
[EventCountry "ESP"]
[SourceTitle "playchess.com"]
[Source "ChessBase"]
[SourceQuality "1"]
[TimeControl "5400+30"]

1. e4 {[%emt 0:00:00]} e6 {[%emt 0:00:00]} 2. d4 {[%emt 0:00:00]} d5 {[%emt 0:00:06]} 3. Nc3 {[%emt 0:00:00]} Bb4 {[%emt 0:00:09]} 4. e5 {[%emt 0:00:00]} c5 {[%emt 0:00:07]} 5. a3 {[%emt 0:00:00]} Bxc3+ {[%emt 0:00:13]} 6. bxc3 {[%emt 0:00:00]} Qa5 {[%emt 0:00:34]} 7. Bd2 {[%emt 0:00:00]} Qa4 {[%emt 0:00:06]} 8. Qb1 {[%emt 0:00:00]} c4 {[%emt 0:00:13]} 9. Nh3 {[%emt 0:00:00]} Nc6 {[%emt 0:01:39]} 10. Nf4 {[%emt 0:00:03]} Bd7 {[%emt 0:02:19]} 11. g3 {[%emt 0:00:10]} O-O-O {[%emt 0:01:18]} 12. Bh3 {[%emt 0:00:17]} f5 {[%emt 0:07:31]} 13. g4 {[%emt 0:19:07]} fxg4 {[%emt 0:04:57]} 14. Bxg4 {[%emt 0:00:04]} Re8 {[%emt 0:00:43]} 15. Nxd5 {[%emt 0:16:19]} Nxe5 {[%emt 0:09:37]} 16. Ne3 {[%emt 0:06:55]} Nxg4 {[%emt 0:01:21]} 17. Nxg4 {[%emt 0:00:02]} Nf6 {[%emt 0:03:01]} 18. Ne5 {[%emt 0:03:51]} Nd5 {[%emt 0:06:09]} 19. Qa2 {[%emt 0:06:04]} b5 {[%emt 0:07:51]} 20. Rg1 {[%emt 0:15:48]} Rhg8 {[%emt 0:01:37]} 21. Rg3 {[%emt 0:08:18]} Ref8 {[%emt 0:03:10]} 22. Kf1 {[%emt 0:00:11]} Rf5 {[%emt 0:03:59]} 23. Re1 {[%emt 0:05:12]} Rgf8 {[%emt 0:04:39]} 24. Re2 {[%emt 0:01:57]} Be8 {[%emt 0:08:31]} 25. Kg2 {[%emt 0:01:34]} Bh5 {[%emt 0:01:32]} 26. f3 {[%emt 0:00:04]} g5 {[%emt 0:05:13]} 27. Qb1 {[%emt 0:04:35]} Be8 {[%emt 0:02:15]} 28. Qc1 {[%emt 0:03:24]} h6 {[%emt 0:00:06]} 29. Ng4 {[%emt 0:02:05]} Bh5 {[%emt 0:01:13]} 30. Rxe6 {[%emt 0:01:38]} Bxg4 {[%emt 0:00:06]} 31. fxg4 {[%emt 0:01:54]} Rf2+ {[%emt 0:00:38]} 32. Kh3 {[%emt 0:00:11]} Rxd2 {[%emt 0:00:06]} 33. Rge3 {[%emt 0:02:44]} Nf4+ {[%emt 0:00:35]} 34. Kg3 {[%emt 0:00:01]} Rg2+ {[%emt 0:00:12]} 35. Kf3 {[%emt 0:00:02]} Nd3+ {[%emt 0:00:59]} 0-1

[Event "VII Lorca Open 2018"]
[Site "Lorca"]
[Date "2018.12.27"]
[Round "3"]
[White "Mingarro Carceller, Sergi"]
[Black "Pap, Misa"]
[Result "0-1"]
[ECO "C55"]
[WhiteElo "2361"]
[BlackElo "2480"]
[Annotator "ChessBase"]
[PlyCount "90"]
[EventDate "2018.12.26"]
[EventType "swiss"]
[EventCountry "ESP"]
[SourceTitle "playchess.com"]
[Source "ChessBase"]
[SourceQuality "1"]
[TimeControl "5400+30"]

1. e4 {[%emt 0:00:00]} e5 {[%emt 0:03:32]} 2. Nf3 {[%emt 0:00:00]} Nc6 {[%emt 0:00:39]} 3. Bc4 {[%emt 0:00:03]} Nf6 {[%emt 0:00:05]} 4. d3 {[%emt 0:00:09]} Be7 {[%emt 0:00:53]} 5. O-O {[%emt 0:00:17]} O-O {[%emt 0:00:17]} 6. Re1 {[%emt 0:00:23]} d6 {[%emt 0:00:11]} 7. a4 {[%emt 0:00:10]} Kh8 {[%emt 0:01:05]} 8. a5 {[%emt 0:02:35]} a6 {[%emt 0:00:06]} 9. h3 {[%emt 0:00:17]} Be6 {[%emt 0:14:52]} 10. Nbd2 {[%emt 0:05:07]} Ng8 {[%emt 0:00:23]} 11. Bxe6 {[%emt 0:08:58]} fxe6 {[%emt 0:00:04]} 12. c3 {[%emt 0:00:33]} Qd7 {[%emt 0:02:22]} 13. Nf1 {[%emt 0:04:23]} Rf7 {[%emt 0:03:34]} 14. Ng3 {[%emt 0:03:03]} Raf8 {[%emt 0:00:33]} 15. Be3 {[%emt 0:16:21]} Bf6 {[%emt 0:10:10]} 16. d4 {[%emt 0:13:49]} exd4 {[%emt 0:00:13]} 17. cxd4 {[%emt 0:00:17]} d5 {[%emt 0:00:10]} 18. e5 {[%emt 0:01:11]} Be7 {[%emt 0:00:11]} 19. Re2 {[%emt 0:06:26]} Rb8 {[%emt 0:15:54]} 20. Rc2 {[%emt 0:05:08]} Rff8 {[%emt 0:04:48]} 21. Ne1 {[%emt 0:01:56]} Nb4 {[%emt 0:06:57]} 22. Rc3 {[%emt 0:01:20]} c5 {[%emt 0:04:46]} 23. dxc5 {[%emt 0:09:40]} Nc6 {[%emt 0:00:04]} 24. Ne2 {[%emt 0:01:35]} Nxe5 {[%emt 0:04:55]} 25. Bf4 {[%emt 0:01:01]} Bf6 {[%emt 0:00:05]} 26. Nd4 {[%emt 0:05:35]} Rbe8 {[%emt 0:00:50]} 27. Bg3 {[%emt 0:05:23]} Ne7 {[%emt 0:03:42]} 28. Re3 {[%emt 0:01:04]} N7c6 {[%emt 0:04:09]} 29. Nxc6 {[%emt 0:02:04]} Nxc6 {[%emt 0:00:09]} 30. Nd3 {[%emt 0:04:11]} e5 {[%emt 0:03:33]} 31. Qe1 {[%emt 0:00:32]} e4 {[%emt 0:00:50]} 32. Nb4 {[%emt 0:00:15]} Bd4 {[%emt 0:05:06]} 33. Nxc6 {[%emt 0:02:09]} Bxe3 {[%emt 0:01:30]} 34. Qxe3 {[%emt 0:00:33]} bxc6 {[%emt 0:00:28]} 35. Qd4 {[%emt 0:00:29]} Rf7 {[%emt 0:03:00]} 36. Ra4 {[%emt 0:00:19]} e3 {[%emt 0:00:18]} 37. fxe3 {[%emt 0:00:19]} Re4 {[%emt 0:00:05]} 38. Rb4 {[%emt 0:00:06]} Qe8 {[%emt 0:02:29]} 39. Qd2 {[%emt 0:00:56]} Rxb4 {[%emt 0:00:06]} 40. Qxb4 {[%emt 0:00:06]} Qxe3+ {[%emt 0:00:14]} 41. Kh2 {[%emt 0:00:03]} h6 {[%emt 0:01:05]} 42. Bd6 {[%emt 0:01:31]} Rf2 {[%emt 0:00:56]} 43. Qg4 {[%emt 0:00:33]} Qe4 {[%emt 0:00:36]} 44. Qg3 {[%emt 0:00:25]} Rf6 {[%emt 0:01:33]} 45. Qc3 {[%emt 0:00:43]} d4 {[%emt 0:00:20]} 0-1

[Event "VII Lorca Open 2018"]
[Site "Lorca"]
[Date "2018.12.27"]
[Round "3"]
[White "Martin Duque, Jesus"]
[Black "Rey Malde, Henrique"]
[Result "1-0"]
[ECO "B38"]
[WhiteElo "2354"]
[BlackElo "2171"]
[Annotator "NA RC"]
[PlyCount "213"]
[EventDate "2018.12.26"]
[EventType "swiss"]
[EventCountry "ESP"]
[SourceTitle "playchess.com"]
[Source "ChessBase"]
[SourceQuality "1"]
[TimeControl "5400+30"]

1. e4 {[%emt 0:03:17]} c5 {[%emt 0:00:00]} 2. Nf3 {[%emt 0:00:02]} d6 {[%emt 0:00:00]} 3. d4 {[%emt 0:02:17]} cxd4 {[%emt 0:00:05]} 4. Nxd4 {[%emt 0:00:04]} Nf6 {[%emt 0:00:07]} 5. f3 {[%emt 0:00:08]} g6 {[%emt 0:05:31]} 6. c4 {[%emt 0:00:19]} Bg7 {[%emt 0:00:06]} 7. Be3 {[%emt 0:00:05]} O-O {[%emt 0:00:46]} 8. Nc3 {[%emt 0:00:03]} Nc6 {[%emt 0:00:38]} 9. Qd2 {[%emt 0:00:11]} Bd7 {[%emt 0:01:52]} 10. Be2 {[%emt 0:01:06]} Nxd4 {[%emt 0:01:40]} 11. Bxd4 {[%emt 0:00:02]} Bc6 {[%emt 0:00:08]} 12. b4 {[%emt 0:03:27]} b6 {[%emt 0:05:05]} 13. O-O {[%emt 0:00:16]} Nd7 {[%emt 0:03:21]} 14. Be3 {[%emt 0:00:10]} Qc7 {[%emt 0:10:48]} 15. Rac1 {[%emt 0:00:41]} Rfc8 {[%emt 0:01:12]} 16. Nd5 {[%emt 0:06:57]} Bxd5 {[%emt 0:04:22]} 17. cxd5 {[%emt 0:00:52]} Qb7 {[%emt 0:01:38]} 18. Bb5 {[%emt 0:05:44]} Rxc1 {[%emt 0:02:12]} 19. Rxc1 {[%emt 0:00:42]} Rc8 {[%emt 0:00:38]} 20. Bc6 {[%emt 0:05:24]} Qc7 {[%emt 0:00:11]} 21. Qe2 {[%emt 0:04:31]} Qd8 {[%emt 0:02:23]} 22. a4 {[%emt 0:03:21]} Rc7 {[%emt 0:07:30]} 23. Qb5 {[%emt 0:03:32]} Qc8 {[%emt 0:10:05]} 24. a5 {[%emt 0:14:27]} bxa5 {[%emt 0:04:59]} 25. bxa5 {[%emt 0:05:19]} Nc5 {[%emt 0:07:06]} 26. Rb1 {[%emt 0:03:20]} h5 {[%emt 0:00:52]} 27. Qb8 {[%emt 0:01:21]} Bf6 {[%emt 0:05:17]} 28. Kf1 {[%emt 0:01:38]} Kg7 {[%emt 0:04:28]} 29. Qxc8 {[%emt 0:00:04]} Rxc8 {[%emt 0:00:03]} 30. Bxc5 {[%emt 0:00:27]} dxc5 {[%emt 0:00:05]} 31. Rb7 {[%emt 0:00:42]} c4 {[%emt 0:03:15]} 32. Ke2 {[%emt 0:02:49]} a6 {[%emt 0:08:16]} 33. f4 {[%emt 0:04:21]} Bc3 {[%emt 0:00:16]} 34. Rxe7 {[%emt 0:00:34]} Bxa5 {[%emt 0:01:20]} 35. Rb7 {[%emt 0:00:25]} c3 {[%emt 0:00:56]} 36. Kd3 {[%emt 0:00:11]} g5 {[%emt 0:03:37]} 37. g3 {[%emt 0:02:40]} h4 {[%emt 0:01:48]} 38. Ra7 {[%emt 0:04:44]} hxg3 {[%emt 0:00:45]} 39. hxg3 {[%emt 0:00:02]} gxf4 {[%emt 0:00:12]} 40. Rxa6 {[%emt 0:01:51]} Bc7 {[%emt 0:02:11]} 41. gxf4 {[%emt 0:00:01]} Bxf4 {[%emt 0:00:12]} 42. Kxc3 {[%emt 0:00:01]} Rb8 {[%emt 0:03:20]} 43. Kd4 {[%emt 0:00:28]} Rb4+ {[%emt 0:00:27]} 44. Kd3 {[%emt 0:00:06]} Be5 {[%emt 0:00:31]} 45. Ba4 {[%emt 0:00:19]} Kf8 {[%emt 0:01:09]} 46. Ke3 {[%emt 0:00:01]} Ke7 {[%emt 0:00:19]} 47. Kf3 {[%emt 0:00:11]} Rc4 {[%emt 0:00:15]} 48. Bb5 {[%emt 0:00:47]} Rb4 {[%emt 0:00:30]} 49. Ra7+ {[%emt 0:00:45]} Kd6 {[%emt 0:01:17]} 50. Rd7+ {[%emt 0:01:07]} Kc5 {[%emt 0:00:04]} 51. Bc6 {[%emt 0:00:11]} f5 {[%emt 0:00:27]} 52. exf5 {[%emt 0:00:09]} Rf4+ {[%emt 0:00:03]} 53. Ke3 {[%emt 0:00:03]} Rxf5 {[%emt 0:00:06]} 54. Ke4 {[%emt 0:00:18]} Rh5 {[%emt 0:00:15]} 55. Rb7 {[%emt 0:00:18]} Bd6 {[%emt 0:00:52]} 56. Rb5+ {[%emt 0:00:01]} Kc4 {[%emt 0:00:05]} 57. Rb1 {[%emt 0:00:03]} Re5+ {[%emt 0:00:30]} 58. Kf3 {[%emt 0:00:02]} Re7 {[%emt 0:00:39]} 59. Kg4 {[%emt 0:00:13]} Rf7 {[%emt 0:00:40]} 60. Rc1+ {[%emt 0:00:04]} Kd4 {[%emt 0:00:12]} 61. Re1 {[%emt 0:00:10]} Kc5 {[%emt 0:00:27]} 62. Kg5 {[%emt 0:00:43]} Rf2 {[%emt 0:00:08]} 63. Rc1+ {[%emt 0:00:16]} Kd4 {[%emt 0:00:18]} 64. Rd1+ {[%emt 0:00:03]} Ke5 {[%emt 0:00:52]} 65. Re1+ {[%emt 0:00:13]} Kd4 {[%emt 0:00:05]} 66. Kg6 {[%emt 0:00:07]} Kc5 {[%emt 0:00:29]} 67. Rd1 {[%emt 0:00:08]} Rf4 {[%emt 0:01:08]} 68. Kg5 {[%emt 0:00:15]} Rf2 {[%emt 0:01:01]} 69. Bd7 {[%emt 0:00:05]} Be7+ {[%emt 0:00:18]} 70. Kg4 {[%emt 0:01:02]} Bd6 {[%emt 0:00:12]} 71. Be6 {[%emt 0:00:13]} Rf4+ {[%emt 0:01:13]} 72. Kg5 {[%emt 0:00:05]} Rf2 {[%emt 0:00:26]} 73. Kg6 {[%emt 0:00:24]} Be5 {[%emt 0:00:59]} 74. Rc1+ {[%emt 0:00:28]} Kd6 {[%emt 0:00:26]} 75. Rc6+ {[%emt 0:00:03]} Ke7 {[%emt 0:00:04]} 76. Ra6 {[%emt 0:00:07]} Bc7 {[%emt 0:01:03]} 77. Bg4 {[%emt 0:00:35]} Bg3 {[%emt 0:00:55]} 78. Re6+ {[%emt 0:01:39]} Kd8 {[%emt 0:00:11]} 79. Bf5 {[%emt 0:00:30]} Rd2 {[%emt 0:00:31]} 80. Re3 {[%emt 0:00:23]} Bd6 {[%emt 0:00:26]} 81. Be4 {[%emt 0:01:43]} Rf2 {[%emt 0:00:25]} 82. Rh3 {[%emt 0:01:09]} Be7 {[%emt 0:00:30]} 83. Bf5 {[%emt 0:01:00]} Kc7 {[%emt 0:00:16]} 84. Re3 {[%emt 0:00:16]} Bc5 {[%emt 0:00:34]} 85. Re6 {[%emt 0:00:06]} Bd6 {[%emt 0:00:20]} 86. Re8 {[%emt 0:00:05]} Rd2 {[%emt 0:01:10]} 87. Rc8+ {[%emt 0:00:20]} Kb7 {[%emt 0:00:08]} 88. Rc4 {[%emt 0:00:23]} Rf2 {[%emt 0:01:04]} 89. Kf6 {[%emt 0:00:20]} Re2 {[%emt 0:00:21]} 90. Be4 {[%emt 0:00:22]} Kb8 {[%emt 0:00:48]} 91. Ke6 {[%emt 0:00:10]} Bg3 {[%emt 0:00:29]} 92. d6 {[%emt 0:02:59]} Bxd6 {[%emt 0:00:32]} 93. Kxd6 {[%emt 0:00:01]} Rh2 {[%emt 0:00:28]} 94. Rb4+ {[%emt 0:03:47]} Ka7 {[%emt 0:00:15]} 95. Kc7 {[%emt 0:00:06]} Ka6 {[%emt 0:00:46]} 96. Bc6 {[%emt 0:00:37]} Rh7+ {[%emt 0:00:10]} 97. Bd7 {[%emt 0:00:34]} Rh5 {[%emt 0:00:14]} 98. Ra4+ {[%emt 0:12:43]} Ra5 {[%emt 0:00:12]} 99. Rg4 {[%emt 0:00:17]} Rh5 {[%emt 0:00:23]} 100. Be8 {[%emt 0:00:52]} Rh7+ {[%emt 0:00:43]} 101. Kc6 {[%emt 0:00:07]} Rh6+ {[%emt 0:00:33]} 102. Bg6 {[%emt 0:00:16]} Ka5 {[%emt 0:00:25]} 103. Kc5 {[%emt 0:00:28]} Rh3 {[%emt 0:01:03]} 104. Bf7 {[%emt 0:01:35]} Ka6 {[%emt 0:00:23]} 105. Ra4+ {[%emt 0:01:32]} Kb7 {[%emt 0:00:07]} 106. Bd5+ {[%emt 0:00:11]} Kb8 {[%emt 0:00:57]} 107. Kb6 {[%emt 0:00:15]} 1-0

[Event "VII Lorca Open 2018"]
[Site "Lorca"]
[Date "2018.12.27"]
[Round "3"]
[White "Melero Fidalgo, Juan De Dios"]
[Black "Nayhebaver, Martin"]
[Result "0-1"]
[ECO "A01"]
[WhiteElo "2348"]
[BlackElo "2460"]
[Annotator "ChessBase"]
[PlyCount "84"]
[EventDate "2018.12.26"]
[EventType "swiss"]
[EventCountry "ESP"]
[SourceTitle "playchess.com"]
[Source "ChessBase"]
[SourceQuality "1"]
[TimeControl "5400+30"]

1. b3 {[%emt 0:01:31]} Nf6 {[%emt 0:01:23]} 2. Bb2 {[%emt 0:00:05]} g6 {[%emt 0:00:40]} 3. d4 {[%emt 0:00:15]} Bg7 {[%emt 0:00:13]} 4. Nc3 {[%emt 0:00:05]} d5 {[%emt 0:00:34]} 5. Qd2 {[%emt 0:00:29]} O-O {[%emt 0:01:22]} 6. O-O-O {[%emt 0:00:24]} c6 {[%emt 0:05:27]} 7. e3 {[%emt 0:01:26]} b5 {[%emt 0:01:47]} 8. f3 {[%emt 0:01:03]} a5 {[%emt 0:02:06]} 9. g4 {[%emt 0:00:45]} a4 {[%emt 0:03:49]} 10. Nge2 {[%emt 0:08:20]} axb3 {[%emt 0:03:19]} 11. axb3 {[%emt 0:00:14]} Nbd7 {[%emt 0:13:50]} 12. g5 {[%emt 0:01:50]} Ne8 {[%emt 0:04:32]} 13. h4 {[%emt 0:01:16]} Nd6 {[%emt 0:00:22]} 14. h5 {[%emt 0:06:15]} Re8 {[%emt 0:02:31]} 15. hxg6 {[%emt 0:08:59]} hxg6 {[%emt 0:00:23]} 16. Ng3 {[%emt 0:09:25]} b4 {[%emt 0:05:14]} 17. Na4 {[%emt 0:20:39]} Rxa4 {[%emt 0:06:37]} 18. bxa4 {[%emt 0:00:35]} Qa5 {[%emt 0:00:08]} 19. c3 {[%emt 0:08:31]} b3 {[%emt 0:06:05]} 20. c4 {[%emt 0:16:56]} Qxa4 {[%emt 0:01:00]} 21. c5 {[%emt 0:00:36]} Nc4 {[%emt 0:03:03]} 22. Bxc4 {[%emt 0:01:37]} Qxc4+ {[%emt 0:00:35]} 23. Qc3 {[%emt 0:01:56]} Qb5 {[%emt 0:00:26]} 24. Ba3 {[%emt 0:01:19]} Qb8 {[%emt 0:03:28]} 25. f4 {[%emt 0:01:24]} Ba6 {[%emt 0:00:28]} 26. Qb4 {[%emt 0:02:43]} Qc7 {[%emt 0:02:50]} 27. Kd2 {[%emt 0:02:33]} Bc4 {[%emt 0:02:03]} 28. Bb2 {[%emt 0:01:00]} f6 {[%emt 0:04:02]} 29. gxf6 {[%emt 0:00:30]} exf6 {[%emt 0:00:36]} 30. Ra1 {[%emt 0:00:59]} f5 {[%emt 0:00:46]} 31. Qa5 {[%emt 0:00:41]} Qc8 {[%emt 0:00:02]} 32. Rhc1 {[%emt 0:01:03]} Nf6 {[%emt 0:00:09]} 33. Qb4 {[%emt 0:00:15]} Qe6 {[%emt 0:01:26]} 34. Re1 {[%emt 0:00:32]} Qe7 {[%emt 0:00:47]} 35. Rac1 {[%emt 0:00:39]} Qe6 {[%emt 0:01:15]} 36. Rc3 {[%emt 0:00:25]} Ng4 {[%emt 0:00:56]} 37. Rxb3 {[%emt 0:00:34]} Bxb3 {[%emt 0:01:01]} 38. Qxb3 {[%emt 0:00:01]} Bh6 {[%emt 0:00:38]} 39. Re2 {[%emt 0:00:58]} Qe7 {[%emt 0:02:29]} 40. Kc2 {[%emt 0:00:37]} Nxe3+ {[%emt 0:03:45]} 41. Kb1 {[%emt 0:00:31]} Bxf4 {[%emt 0:00:01]} 42. Bc1 {[%emt 0:00:29]} Rb8 {[%emt 0:00:14]} 0-1

[Event "VII Lorca Open 2018"]
[Site "Lorca"]
[Date "2018.12.27"]
[Round "3"]
[White "Garcia Ramos, Daniel"]
[Black "Dominguez Ruiz, Mario"]
[Result "1/2-1/2"]
[ECO "B28"]
[WhiteElo "2304"]
[BlackElo "2107"]
[Annotator "NA"]
[PlyCount "134"]
[EventDate "2018.12.26"]
[EventType "swiss"]
[EventCountry "ESP"]
[SourceTitle "playchess.com"]
[Source "ChessBase"]
[SourceQuality "1"]
[TimeControl "5400+30"]

1. e4 {[%emt 0:00:00]} c5 {[%emt 0:00:00]} 2. Nf3 {[%emt 0:00:00]} a6 {[%emt 0:00:20]} 3. c3 {[%emt 0:00:06]} d5 {[%emt 0:00:31]} 4. exd5 {[%emt 0:00:11]} Qxd5 {[%emt 0:00:07]} 5. d4 {[%emt 0:00:13]} Bg4 {[%emt 0:00:41]} 6. Be2 {[%emt 0:00:40]} e6 {[%emt 0:00:08]} 7. O-O {[%emt 0:00:52]} Nc6 {[%emt 0:00:28]} 8. Be3 {[%emt 0:01:00]} cxd4 {[%emt 0:00:09]} 9. cxd4 {[%emt 0:00:18]} Nf6 {[%emt 0:00:09]} 10. Nc3 {[%emt 0:00:08]} Qd6 {[%emt 0:00:09]} 11. Qb3 {[%emt 0:15:24]} Qb4 {[%emt 0:03:41]} 12. Qc2 {[%emt 0:08:58]} Be7 {[%emt 0:00:32]} 13. Rad1 {[%emt 0:02:36]} Qd6 {[%emt 0:03:30]} 14. h3 {[%emt 0:06:14]} Bf5 {[%emt 0:02:34]} 15. Qc1 {[%emt 0:00:12]} h6 {[%emt 0:04:58]} 16. Bf4 {[%emt 0:01:21]} Qd8 {[%emt 0:00:08]} 17. a3 {[%emt 0:05:38]} Rc8 {[%emt 0:05:45]} 18. Qe3 {[%emt 0:13:02]} O-O {[%emt 0:02:10]} 19. Ne5 {[%emt 0:00:39]} Nd5 {[%emt 0:01:41]} 20. Nxd5 {[%emt 0:00:42]} exd5 {[%emt 0:00:36]} 21. Bf3 {[%emt 0:08:55]} Bf6 {[%emt 0:02:01]} 22. Rc1 {[%emt 0:13:20]} Bxe5 {[%emt 0:00:14]} 23. dxe5 {[%emt 0:00:25]} d4 {[%emt 0:02:23]} 24. Qb3 {[%emt 0:02:24]} Qd7 {[%emt 0:04:32]} 25. Rfd1 {[%emt 0:00:47]} Rfd8 {[%emt 0:00:36]} 26. Qb6 {[%emt 0:01:52]} d3 {[%emt 0:04:38]} 27. Bxc6 {[%emt 0:07:20]} Rxc6 {[%emt 0:02:24]} 28. Rxc6 {[%emt 0:00:09]} bxc6 {[%emt 0:00:05]} 29. Qxa6 {[%emt 0:03:02]} Qd4 {[%emt 0:01:09]} 30. Qa5 {[%emt 0:00:45]} Rb8 {[%emt 0:01:25]} 31. Bc1 {[%emt 0:05:46]} c5 {[%emt 0:02:23]} 32. Be3 {[%emt 0:00:28]} Qxe5 {[%emt 0:01:11]} 33. b4 {[%emt 0:01:06]} Bg6 {[%emt 0:01:34]} 34. Qxc5 {[%emt 0:00:19]} Qb2 {[%emt 0:01:47]} 35. Qc1 {[%emt 0:01:31]} Qb3 {[%emt 0:00:42]} 36. Rd2 {[%emt 0:00:55]} Ra8 {[%emt 0:01:01]} 37. Qb2 {[%emt 0:00:28]} Rxa3 {[%emt 0:01:04]} 38. b5 {[%emt 0:00:39]} Be4 {[%emt 0:01:46]} 39. Qe5 {[%emt 0:00:33]} Ba8 {[%emt 0:01:42]} 40. b6 {[%emt 0:00:28]} f6 {[%emt 0:00:53]} 41. Qe8+ {[%emt 0:00:31]} Kh7 {[%emt 0:00:11]} 42. Qd7 {[%emt 0:00:05]} Qd5 {[%emt 0:02:54]} 43. Qxd5 {[%emt 0:00:26]} Bxd5 {[%emt 0:00:02]} 44. f3 {[%emt 0:00:37]} Rb3 {[%emt 0:00:24]} 45. Kf2 {[%emt 0:00:08]} Kg6 {[%emt 0:01:21]} 46. Bd4 {[%emt 0:00:12]} Kf5 {[%emt 0:00:55]} 47. Ke3 {[%emt 0:00:11]} Ke6 {[%emt 0:00:38]} 48. Rxd3 {[%emt 0:00:14]} Rxd3+ {[%emt 0:00:08]} 49. Kxd3 {[%emt 0:02:40]} h5 {[%emt 0:01:03]} 50. Ke3 {[%emt 0:00:00]} Bb7 {[%emt 0:01:40]} 51. Kf4 {[%emt 0:00:00]} Bc6 {[%emt 0:01:09]} 52. g4 {[%emt 0:00:24]} hxg4 {[%emt 0:00:17]} 53. fxg4 {[%emt 0:00:10]} g5+ {[%emt 0:01:18]} 54. Kg3 {[%emt 0:00:20]} Kf7 {[%emt 0:00:39]} 55. h4 {[%emt 0:00:49]} gxh4+ {[%emt 0:00:07]} 56. Kxh4 {[%emt 0:00:02]} Kg6 {[%emt 0:00:12]} 57. Be3 {[%emt 0:00:16]} Bb7 {[%emt 0:00:21]} 58. Kg3 {[%emt 0:00:06]} Kf7 {[%emt 0:00:15]} 59. Kf4 {[%emt 0:00:06]} Ke6 {[%emt 0:00:24]} 60. Bd4 {[%emt 0:00:10]} Ba8 {[%emt 0:00:40]} 61. Bc3 {[%emt 0:00:12]} Bb7 {[%emt 0:00:28]} 62. Ke3 {[%emt 0:00:05]} Ba8 {[%emt 0:00:38]} 63. Kd4 {[%emt 0:00:13]} Bf3 {[%emt 0:00:59]} 64. Ke3 {[%emt 0:00:16]} Bb7 {[%emt 0:00:11]} 65. Kf4 {[%emt 0:00:09]} Ba8 {[%emt 0:00:14]} 66. Kg3 {[%emt 0:01:10]} Kf7 {[%emt 0:00:09]} 67. Bd4 {[%emt 0:00:39]} Bb7 {[%emt 0:00:08]} 1/2-1/2

[Event "VII Lorca Open 2018"]
[Site "Lorca"]
[Date "2018.12.27"]
[Round "3"]
[White "Alonso Garcia, Aaron"]
[Black "Gomez Ledo, Roberto Carlos"]
[Result "0-1"]
[ECO "C41"]
[WhiteElo "2274"]
[BlackElo "2448"]
[Annotator "NA"]
[PlyCount "118"]
[EventDate "2018.12.26"]
[EventType "swiss"]
[EventCountry "ESP"]
[SourceTitle "playchess.com"]
[Source "ChessBase"]
[SourceQuality "1"]
[TimeControl "5400+30"]

1. e4 {[%emt 0:00:00]} d6 {[%emt 0:00:00]} 2. d4 {[%emt 0:00:00]} Nf6 {[%emt 0:00:00]} 3. Nc3 {[%emt 0:00:00]} e5 {[%emt 0:00:04]} 4. Nf3 {[%emt 0:00:00]} Nbd7 {[%emt 0:00:15]} 5. Bc4 {[%emt 0:00:00]} Be7 {[%emt 0:00:20]} 6. O-O {[%emt 0:00:04]} O-O {[%emt 0:00:13]} 7. a4 {[%emt 0:00:14]} a5 {[%emt 0:00:44]} 8. h3 {[%emt 0:00:07]} c6 {[%emt 0:00:32]} 9. Be3 {[%emt 0:00:11]} Qc7 {[%emt 0:06:53]} 10. Qe2 {[%emt 0:04:12]} exd4 {[%emt 0:04:05]} 11. Bxd4 {[%emt 0:01:27]} Ne5 {[%emt 0:00:28]} 12. Nd2 {[%emt 0:08:17]} Nxc4 {[%emt 0:07:20]} 13. Nxc4 {[%emt 0:01:07]} Be6 {[%emt 0:00:26]} 14. Ne3 {[%emt 0:17:51]} Nd7 {[%emt 0:11:40]} 15. f4 {[%emt 0:15:18]} f6 {[%emt 0:03:30]} 16. Ng4 {[%emt 0:21:27]} Rfe8 {[%emt 0:11:36]} 17. Rad1 {[%emt 0:02:40]} Bf8 {[%emt 0:01:43]} 18. Rfe1 {[%emt 0:02:24]} Rad8 {[%emt 0:04:18]} 19. Qf3 {[%emt 0:04:18]} Kh8 {[%emt 0:09:36]} 20. h4 {[%emt 0:09:27]} Bf7 {[%emt 0:00:43]} 21. Ne3 {[%emt 0:02:56]} Nb6 {[%emt 0:11:10]} 22. b3 {[%emt 0:06:04]} Rd7 {[%emt 0:13:58]} 23. Nf5 {[%emt 0:02:18]} Qd8 {[%emt 0:00:55]} 24. Bf2 {[%emt 0:01:03]} d5 {[%emt 0:02:46]} 25. e5 {[%emt 0:00:32]} Be6 {[%emt 0:04:11]} 26. exf6 {[%emt 0:00:31]} Bxf5 {[%emt 0:01:00]} 27. Rxe8 {[%emt 0:00:07]} Qxe8 {[%emt 0:00:05]} 28. Bxb6 {[%emt 0:00:01]} Bxc2 {[%emt 0:01:41]} 29. Rc1 {[%emt 0:00:51]} Bxb3 {[%emt 0:00:56]} 30. Qf2 {[%emt 0:00:55]} gxf6 {[%emt 0:00:33]} 31. Bd4 {[%emt 0:00:32]} Bg7 {[%emt 0:00:21]} 32. Ne2 {[%emt 0:00:25]} Bc4 {[%emt 0:01:17]} 33. Ng3 {[%emt 0:00:01]} Bd3 {[%emt 0:00:21]} 34. Qd2 {[%emt 0:01:01]} Be4 {[%emt 0:00:31]} 35. Qxa5 {[%emt 0:00:32]} f5 {[%emt 0:01:13]} 36. Qc3 {[%emt 0:00:24]} Qg6 {[%emt 0:00:18]} 37. Nxe4 {[%emt 0:00:39]} dxe4 {[%emt 0:00:36]} 38. Be5 {[%emt 0:00:25]} Kg8 {[%emt 0:00:39]} 39. Rb1 {[%emt 0:00:35]} Qe6 {[%emt 0:00:31]} 40. Bxg7 {[%emt 0:00:30]} Rxg7 {[%emt 0:00:06]} 41. Rd1 {[%emt 0:00:13]} Rd7 {[%emt 0:00:55]} 42. Rxd7 {[%emt 0:00:40]} Qxd7 {[%emt 0:00:02]} 43. Qe5 {[%emt 0:00:36]} Kf7 {[%emt 0:02:21]} 44. Kh2 {[%emt 0:00:01]} Kg6 {[%emt 0:00:14]} 45. a5 {[%emt 0:00:54]} Qf7 {[%emt 0:00:37]} 46. Kh3 {[%emt 0:00:32]} Qb3+ {[%emt 0:00:40]} 47. Kh2 {[%emt 0:00:34]} Qf7 {[%emt 0:00:21]} 48. Kh3 {[%emt 0:00:01]} Kh6 {[%emt 0:00:21]} 49. g3 {[%emt 0:00:48]} Qg6 {[%emt 0:00:54]} 50. Qe7 {[%emt 0:00:36]} Kh5 {[%emt 0:00:23]} 51. Qxb7 {[%emt 0:00:30]} Qg4+ {[%emt 0:00:04]} 52. Kh2 {[%emt 0:00:03]} Qe2+ {[%emt 0:00:05]} 53. Kh3 {[%emt 0:00:14]} Qf1+ {[%emt 0:00:04]} 54. Kh2 {[%emt 0:00:02]} Kg4 {[%emt 0:00:49]} 55. Qg7+ {[%emt 0:01:32]} Kf3 {[%emt 0:00:09]} 56. Qb2 {[%emt 0:00:36]} e3 {[%emt 0:00:39]} 57. a6 {[%emt 0:00:40]} Qf2+ {[%emt 0:00:19]} 58. Qxf2+ {[%emt 0:00:12]} exf2 {[%emt 0:00:02]} 59. a7 {[%emt 0:00:11]} f1=Q {[%emt 0:00:06]} 0-1